[Event "Titled Tuesday Blitz April 18 Late 2023"]
[White "Brodowski, Piotr"]
[Black "Bortnyk, Olexandr"]
[WhiteFideId "1124480"]
[BlackFideId "14120828"]
[WhiteElo "2351"]
[BlackElo "2734"]
[Result "0-1"]
[Round "03"]
[TimeControl "180+2"]
[Date "2023.04.18"]
[WhiteClock "0:00:44"]
[BlackClock "0:01:08"]

1. Nf3 {[%clk 0:02:59]}  Nf6 {[%clk 0:02:59]} 2. c4 {[%clk 0:02:59]}  b6 {[%clk 0:02:59]} 3. Nc3 {[%clk 0:02:56]}  Bb7 {[%clk 0:02:59]} 4. d3 {[%clk 0:02:57]}  g6 {[%clk 0:02:59]} 5. g3 {[%clk 0:02:54]}  Bg7 {[%clk 0:02:59]} 6. Bg2 {[%clk 0:02:55]}  O-O {[%clk 0:02:59]} 7. O-O {[%clk 0:02:55]}  c5 {[%clk 0:02:58]} 8. e4 {[%clk 0:02:55]}  d6 {[%clk 0:02:58]} 9. h3 {[%clk 0:02:51]}  Na6 {[%clk 0:02:58]} 10. Be3 {[%clk 0:02:50]}  Nc7 {[%clk 0:02:58]} 11. Qc2 {[%clk 0:02:47]}  a6 {[%clk 0:02:52]} 12. d4 {[%clk 0:02:45]}  cxd4 {[%clk 0:02:49]} 13. Nxd4 {[%clk 0:02:45]}  Nd7 {[%clk 0:02:42]} 14. Rfd1 {[%clk 0:02:44]}  Rc8 {[%clk 0:02:36]} 15. Rac1 {[%clk 0:02:43]}  b5 {[%clk 0:02:36]} 16. cxb5 {[%clk 0:02:36]}  Nxb5 {[%clk 0:02:30]} 17. Ndxb5 {[%clk 0:02:34]}  axb5 {[%clk 0:02:30]} 18. Qb3 {[%clk 0:02:34]}  Bxc3 {[%clk 0:01:56]} 19. Rxc3 {[%clk 0:02:30]}  Qa5 {[%clk 0:01:56]} 20. Bd2 {[%clk 0:01:51]}  Qa4 {[%clk 0:01:51]} 21. Qxa4 {[%clk 0:01:39]}  bxa4 {[%clk 0:01:51]} 22. Rxc8 {[%clk 0:01:39]}  Rxc8 {[%clk 0:01:51]} 23. Bc3 {[%clk 0:01:40]}  Nc5 {[%clk 0:01:47]} 24. e5 {[%clk 0:01:32]}  Bxg2 {[%clk 0:01:46]} 25. Kxg2 {[%clk 0:01:33]}  dxe5 {[%clk 0:01:42]} 26. Bxe5 {[%clk 0:01:31]}  f6 {[%clk 0:01:43]} 27. Bc3 {[%clk 0:01:26]}  Ne4 {[%clk 0:01:35]} 28. Be1 {[%clk 0:01:19]}  Rc2 {[%clk 0:01:28]} 29. Rd4 {[%clk 0:01:06]}  Nc5 {[%clk 0:01:25]} 30. Rd8+ {[%clk 0:00:59]}  Kf7 {[%clk 0:01:26]} 31. Rb8 {[%clk 0:00:59]}  Nd3 {[%clk 0:01:20]} 32. Bc3 {[%clk 0:00:45]}  a3 {[%clk 0:01:21]} 33. Bd4 {[%clk 0:00:44]}  axb2 {[%clk 0:01:16]} 34. a4 {[%clk 0:00:44]}  e5 {[%clk 0:01:16]} 35. Be3 {[%clk 0:00:44]}  Rc4 {[%clk 0:01:08]} 0-1


[Site "https://www.chess.com"]

[Event "Titled Tuesday Blitz April 18 Late 2023"]
[White "Kramnik, Vladimir"]
[Black "Kosteniuk, Alexandra"]
[WhiteFideId "4101588"]
[BlackFideId "4128125"]
[WhiteElo "2712"]
[BlackElo "2453"]
[Result "1-0"]
[Round "03"]
[TimeControl "180+2"]
[Date "2023.04.18"]
[WhiteClock "0:00:36"]
[BlackClock "0:00:13"]

1. c4 {[%clk 0:03:00]}  f5 {[%clk 0:03:00]} 2. g3 {[%clk 0:02:59]}  Nf6 {[%clk 0:03:00]} 3. Bg2 {[%clk 0:02:59]}  g6 {[%clk 0:03:00]} 4. Nc3 {[%clk 0:02:53]}  Bg7 {[%clk 0:03:00]} 5. e3 {[%clk 0:02:53]}  e5 {[%clk 0:02:54]} 6. Nge2 {[%clk 0:02:52]}  d6 {[%clk 0:02:46]} 7. b3 {[%clk 0:02:50]}  Nc6 {[%clk 0:02:41]} 8. Bb2 {[%clk 0:02:49]}  O-O {[%clk 0:02:26]} 9. d3 {[%clk 0:02:49]}  Be6 {[%clk 0:02:17]} 10. Nd5 {[%clk 0:02:44]}  Bxd5 {[%clk 0:02:15]} 11. cxd5 {[%clk 0:02:43]}  Ne7 {[%clk 0:02:16]} 12. e4 {[%clk 0:02:35]}  Qd7 {[%clk 0:02:16]} 13. O-O {[%clk 0:02:29]}  f4 {[%clk 0:02:15]} 14. gxf4 {[%clk 0:02:22]}  Nh5 {[%clk 0:02:09]} 15. fxe5 {[%clk 0:02:18]}  dxe5 {[%clk 0:02:08]} 16. d4 {[%clk 0:02:17]}  Nf4 {[%clk 0:02:07]} 17. dxe5 {[%clk 0:02:08]}  Nh3+ {[%clk 0:01:51]} 18. Bxh3 {[%clk 0:02:00]}  Qxh3 {[%clk 0:01:52]} 19. Ng3 {[%clk 0:01:43]}  Rf4 {[%clk 0:01:50]} 20. Qe2 {[%clk 0:01:41]}  h5 {[%clk 0:01:37]} 21. f3 {[%clk 0:01:28]}  h4 {[%clk 0:01:34]} 22. Qg2 {[%clk 0:01:22]}  Qxg2+ {[%clk 0:01:32]} 23. Kxg2 {[%clk 0:01:22]}  hxg3 {[%clk 0:01:32]} 24. hxg3 {[%clk 0:01:22]}  Rff8 {[%clk 0:01:32]} 25. Rac1 {[%clk 0:01:20]}  Rac8 {[%clk 0:01:23]} 26. f4 {[%clk 0:01:20]}  Rfd8 {[%clk 0:00:52]} 27. Rfd1 {[%clk 0:01:17]}  Kf7 {[%clk 0:00:47]} 28. Ba3 {[%clk 0:01:12]}  Bf8 {[%clk 0:00:26]} 29. Kf3 {[%clk 0:01:05]}  Bg7 {[%clk 0:00:24]} 30. Kg4 {[%clk 0:01:00]}  Rh8 {[%clk 0:00:21]} 31. e6+ {[%clk 0:00:49]}  Ke8 {[%clk 0:00:21]} 32. Rh1 {[%clk 0:00:49]}  Ng8 {[%clk 0:00:16]} 33. Rxh8 {[%clk 0:00:46]}  Bxh8 {[%clk 0:00:16]} 34. Rh1 {[%clk 0:00:44]}  Bf6 {[%clk 0:00:16]} 35. e5 {[%clk 0:00:41]}  Be7 {[%clk 0:00:13]} 36. Bxe7 {[%clk 0:00:36]}  Kxe7 {[%clk 0:00:13]} 37. Rh7+ {[%clk 0:00:36]} 1-0


[Site "https://www.chess.com"]

[Event "Titled Tuesday Blitz April 18 Late 2023"]
[White "Djokic, Mihailo"]
[Black "Svane, Frederik"]
[WhiteFideId "976440"]
[BlackFideId "12923044"]
[WhiteElo "2294"]
[BlackElo "2502"]
[Result "0-1"]
[Round "03"]
[TimeControl "180+2"]
[Date "2023.04.18"]
[WhiteClock "0:00:31"]
[BlackClock "0:01:26"]

1. e4 {[%clk 0:03:00]}  e6 {[%clk 0:02:59]} 2. d4 {[%clk 0:03:01]}  d5 {[%clk 0:02:59]} 3. Nc3 {[%clk 0:03:01]}  Nf6 {[%clk 0:02:59]} 4. Bg5 {[%clk 0:03:01]}  dxe4 {[%clk 0:02:59]} 5. Nxe4 {[%clk 0:03:01]}  Nbd7 {[%clk 0:03:00]} 6. Nf3 {[%clk 0:03:01]}  h6 {[%clk 0:03:00]} 7. Nxf6+ {[%clk 0:03:01]}  Nxf6 {[%clk 0:03:01]} 8. Bh4 {[%clk 0:02:58]}  c5 {[%clk 0:02:58]} 9. dxc5 {[%clk 0:02:57]}  Bxc5 {[%clk 0:02:59]} 10. Qxd8+ {[%clk 0:02:56]}  Kxd8 {[%clk 0:03:00]} 11. Ne5 {[%clk 0:02:51]}  Ke7 {[%clk 0:02:59]} 12. Nd3 {[%clk 0:02:46]}  Bb6 {[%clk 0:02:52]} 13. f3 {[%clk 0:02:41]}  Bd7 {[%clk 0:02:51]} 14. Bf2 {[%clk 0:02:37]}  Bxf2+ {[%clk 0:02:49]} 15. Kxf2 {[%clk 0:02:37]}  Rac8 {[%clk 0:02:35]} 16. c3 {[%clk 0:02:34]}  Nd5 {[%clk 0:02:35]} 17. g3 {[%clk 0:02:24]}  g5 {[%clk 0:02:33]} 18. Be2 {[%clk 0:02:16]}  f6 {[%clk 0:02:24]} 19. Rhe1 {[%clk 0:02:15]}  e5 {[%clk 0:02:15]} 20. Rad1 {[%clk 0:02:14]}  Be6 {[%clk 0:02:13]} 21. a3 {[%clk 0:02:07]}  Rhd8 {[%clk 0:02:02]} 22. Rd2 {[%clk 0:02:05]}  Rd6 {[%clk 0:02:02]} 23. Red1 {[%clk 0:02:03]}  Nb6 {[%clk 0:01:55]} 24. Nb4 {[%clk 0:01:36]}  Rcd8 {[%clk 0:01:54]} 25. Rxd6 {[%clk 0:01:36]}  Rxd6 {[%clk 0:01:55]} 26. Rxd6 {[%clk 0:01:36]}  Kxd6 {[%clk 0:01:55]} 27. Bd1 {[%clk 0:01:16]}  Nc4 {[%clk 0:01:49]} 28. Nd3 {[%clk 0:01:12]}  Bf5 {[%clk 0:01:48]} 29. Bc2 {[%clk 0:00:56]}  Bxd3 {[%clk 0:01:42]} 30. Bxd3 {[%clk 0:00:56]}  Nxb2 {[%clk 0:01:43]} 31. Be4 {[%clk 0:00:53]}  b6 {[%clk 0:01:39]} 32. Ke2 {[%clk 0:00:52]}  Kc5 {[%clk 0:01:36]} 33. Bf5 {[%clk 0:00:45]}  a5 {[%clk 0:01:33]} 34. Be6 {[%clk 0:00:44]}  b5 {[%clk 0:01:31]} 35. Kd2 {[%clk 0:00:39]}  Nc4+ {[%clk 0:01:31]} 36. Bxc4 {[%clk 0:00:39]}  Kxc4 {[%clk 0:01:32]} 37. Kc2 {[%clk 0:00:38]}  h5 {[%clk 0:01:26]} 38. h3 {[%clk 0:00:37]}  h4 {[%clk 0:01:26]} 39. g4 {[%clk 0:00:34]}  a4 {[%clk 0:01:26]} 40. Kd2 {[%clk 0:00:31]}  Kb3 {[%clk 0:01:26]} 41. c4 {[%clk 0:00:31]}  bxc4 {[%clk 0:01:26]} 0-1


[Site "https://www.chess.com"]

[Event "Titled Tuesday Blitz April 18 Late 2023"]
[White "Durarbayli, Vasif"]
[Black "Prohaszka, Peter"]
[WhiteFideId "13402935"]
[BlackFideId "726265"]
[WhiteElo "2551"]
[BlackElo "2626"]
[Result "1/2-1/2"]
[Round "03"]
[TimeControl "180+2"]
[Date "2023.04.18"]
[WhiteClock "0:00:55"]
[BlackClock "0:00:05"]

1. e4 {[%clk 0:03:00]}  c6 {[%clk 0:02:59]} 2. d4 {[%clk 0:03:00]}  d5 {[%clk 0:03:00]} 3. exd5 {[%clk 0:03:01]}  cxd5 {[%clk 0:03:00]} 4. c4 {[%clk 0:03:02]}  Nf6 {[%clk 0:03:00]} 5. Nc3 {[%clk 0:03:02]}  Nc6 {[%clk 0:03:01]} 6. Nf3 {[%clk 0:03:02]}  Bg4 {[%clk 0:02:47]} 7. cxd5 {[%clk 0:03:02]}  Nxd5 {[%clk 0:02:47]} 8. Qb3 {[%clk 0:03:02]}  Bxf3 {[%clk 0:02:48]} 9. gxf3 {[%clk 0:03:02]}  e6 {[%clk 0:02:31]} 10. Qxb7 {[%clk 0:02:59]}  Nxd4 {[%clk 0:02:31]} 11. Bb5+ {[%clk 0:02:57]}  Nxb5 {[%clk 0:02:31]} 12. Qc6+ {[%clk 0:02:58]}  Ke7 {[%clk 0:02:32]} 13. Qc5+ {[%clk 0:02:58]}  Nd6 {[%clk 0:02:10]} 14. Nxd5+ {[%clk 0:02:57]}  exd5 {[%clk 0:02:10]} 15. O-O {[%clk 0:02:58]}  Ke8 {[%clk 0:01:32]} 16. Qc6+ {[%clk 0:02:41]}  Ke7 {[%clk 0:01:32]} 17. Qxd5 {[%clk 0:02:27]}  Rc8 {[%clk 0:01:08]} 18. Bf4 {[%clk 0:02:09]}  Kd7 {[%clk 0:01:05]} 19. Rfd1 {[%clk 0:01:53]}  Qf6 {[%clk 0:00:52]} 20. Qb5+ {[%clk 0:01:43]}  Rc6 {[%clk 0:00:19]} 21. Bxd6 {[%clk 0:01:02]}  Bxd6 {[%clk 0:00:17]} 22. Qb7+ {[%clk 0:00:57]}  Rc7 {[%clk 0:00:16]} 23. Qb5+ {[%clk 0:00:57]}  Rc6 {[%clk 0:00:12]} 24. Qb7+ {[%clk 0:00:57]}  Rc7 {[%clk 0:00:11]} 25. Qb5+ {[%clk 0:00:55]}  Rc6 {[%clk 0:00:05]} 1/2-1/2


[Site "https://www.chess.com"]

[Event "Titled Tuesday Blitz April 18 Late 2023"]
[White "Kamsky, Gata"]
[Black "Bilych, Olexiy"]
[WhiteFideId "2000024"]
[BlackFideId "14156504"]
[WhiteElo "2660"]
[BlackElo "2320"]
[Result "0-1"]
[Round "03"]
[TimeControl "180+2"]
[Date "2023.04.18"]
[WhiteClock "0:00:01"]
[BlackClock "0:00:05"]

1. d4 {[%clk 0:03:00]}  d5 {[%clk 0:02:59]} 2. Nf3 {[%clk 0:02:56]}  Nf6 {[%clk 0:02:59]} 3. Bf4 {[%clk 0:02:55]}  c5 {[%clk 0:02:54]} 4. e3 {[%clk 0:02:55]}  Nc6 {[%clk 0:02:53]} 5. c3 {[%clk 0:02:55]}  Qb6 {[%clk 0:02:46]} 6. Qb3 {[%clk 0:02:54]}  c4 {[%clk 0:02:47]} 7. Qc2 {[%clk 0:02:55]}  Bf5 {[%clk 0:02:47]} 8. Qc1 {[%clk 0:02:55]}  e6 {[%clk 0:02:47]} 9. Nbd2 {[%clk 0:02:55]}  Be7 {[%clk 0:02:39]} 10. Be2 {[%clk 0:02:55]}  h6 {[%clk 0:02:38]} 11. Bd1 {[%clk 0:02:55]}  Nh5 {[%clk 0:02:22]} 12. Bc2 {[%clk 0:02:36]}  Nxf4 {[%clk 0:02:15]} 13. exf4 {[%clk 0:02:36]}  Qc7 {[%clk 0:02:02]} 14. Bxf5 {[%clk 0:02:29]}  exf5 {[%clk 0:02:03]} 15. Ne5 {[%clk 0:02:21]}  O-O {[%clk 0:01:49]} 16. Qc2 {[%clk 0:02:18]}  g6 {[%clk 0:01:47]} 17. O-O {[%clk 0:02:17]}  Bd6 {[%clk 0:01:42]} 18. Rfe1 {[%clk 0:02:13]}  b5 {[%clk 0:01:36]} 19. a3 {[%clk 0:02:09]}  a5 {[%clk 0:01:31]} 20. Nf1 {[%clk 0:02:05]}  Bxe5 {[%clk 0:01:22]} 21. fxe5 {[%clk 0:02:04]}  Nd8 {[%clk 0:01:21]} 22. Ne3 {[%clk 0:02:03]}  Qc6 {[%clk 0:01:20]} 23. a4 {[%clk 0:01:57]}  Rb8 {[%clk 0:01:13]} 24. b3 {[%clk 0:01:53]}  f4 {[%clk 0:00:38]} 25. Ng4 {[%clk 0:01:51]}  Ne6 {[%clk 0:00:24]} 26. axb5 {[%clk 0:01:48]}  Rxb5 {[%clk 0:00:24]} 27. bxc4 {[%clk 0:01:47]}  Qxc4 {[%clk 0:00:24]} 28. Rec1 {[%clk 0:00:56]}  Kg7 {[%clk 0:00:22]} 29. h4 {[%clk 0:00:54]}  Rc8 {[%clk 0:00:21]} 30. Qd1 {[%clk 0:00:49]}  Rb3 {[%clk 0:00:17]} 31. Rxa5 {[%clk 0:00:35]}  Rxc3 {[%clk 0:00:18]} 32. Rxc3 {[%clk 0:00:34]}  Qxc3 {[%clk 0:00:19]} 33. Ra1 {[%clk 0:00:18]}  Nxd4 {[%clk 0:00:17]} 34. Kh2 {[%clk 0:00:16]}  h5 {[%clk 0:00:12]} 35. Nf6 {[%clk 0:00:15]}  f3 {[%clk 0:00:09]} 36. Nxd5 {[%clk 0:00:14]}  Qb2 {[%clk 0:00:09]} 37. Ra4 {[%clk 0:00:11]}  Qxf2 {[%clk 0:00:08]} 38. Nf4 {[%clk 0:00:09]}  Qxh4+ {[%clk 0:00:06]} 39. Nh3 {[%clk 0:00:08]}  Rd8 {[%clk 0:00:03]} 40. Qf1 {[%clk 0:00:06]}  fxg2 {[%clk 0:00:03]} 41. Kxg2 {[%clk 0:00:06]}  Qg4+ {[%clk 0:00:03]} 42. Kh1 {[%clk 0:00:06]}  Qe4+ {[%clk 0:00:04]} 43. Qg2 {[%clk 0:00:05]}  Qxg2+ {[%clk 0:00:04]} 44. Kxg2 {[%clk 0:00:05]}  Ne6 {[%clk 0:00:04]} 45. Ra7 {[%clk 0:00:04]}  Rd5 {[%clk 0:00:04]} 46. Ng1 {[%clk 0:00:02]}  Rxe5 {[%clk 0:00:05]} 47. Nf3 {[%clk 0:00:03]}  Rf5 {[%clk 0:00:05]} 48. Kg3 {[%clk 0:00:03]}  g5 {[%clk 0:00:05]} 49. Rd7 {[%clk 0:00:01]}  h4+ {[%clk 0:00:05]} 50. Kg2 {[%clk 0:00:01]}  Kg6 {[%clk 0:00:05]} 0-1


[Site "https://www.chess.com"]

[Event "Titled Tuesday Blitz April 18 Late 2023"]
[White "Yoo, Christopher Woojin"]
[Black "UnknownxArmy"]
[WhiteFideId "30909694"]
[WhiteElo "2519"]
[BlackElo "2684"]
[Result "1-0"]
[Round "03"]
[TimeControl "180+2"]
[Date "2023.04.18"]
[WhiteClock "0:00:56"]
[BlackClock "0:01:20"]

1. d4 {[%clk 0:03:00]}  g6 {[%clk 0:02:57]} 2. Nf3 {[%clk 0:03:00]}  Bg7 {[%clk 0:02:57]} 3. c4 {[%clk 0:03:00]}  d6 {[%clk 0:02:58]} 4. Nc3 {[%clk 0:03:00]}  Bd7 {[%clk 0:02:58]} 5. e4 {[%clk 0:02:50]}  a6 {[%clk 0:02:54]} 6. Be3 {[%clk 0:02:47]}  Nc6 {[%clk 0:02:46]} 7. Be2 {[%clk 0:02:39]}  e5 {[%clk 0:02:46]} 8. d5 {[%clk 0:02:37]}  Nce7 {[%clk 0:02:46]} 9. c5 {[%clk 0:02:32]}  h6 {[%clk 0:02:39]} 10. Qb3 {[%clk 0:02:07]}  Rb8 {[%clk 0:02:32]} 11. cxd6 {[%clk 0:02:01]}  cxd6 {[%clk 0:02:32]} 12. Bb6 {[%clk 0:01:59]}  Qc8 {[%clk 0:02:24]} 13. Nd2 {[%clk 0:01:59]}  Ra8 {[%clk 0:02:15]} 14. Nc4 {[%clk 0:01:32]}  Qb8 {[%clk 0:02:14]} 15. Be3 {[%clk 0:01:17]}  b5 {[%clk 0:02:09]} 16. Nb6 {[%clk 0:01:13]}  Ra7 {[%clk 0:02:09]} 17. Nxd7 {[%clk 0:01:11]}  Rxd7 {[%clk 0:02:10]} 18. a4 {[%clk 0:01:11]}  b4 {[%clk 0:01:51]} 19. Bxa6 {[%clk 0:01:00]}  Qa8 {[%clk 0:01:44]} 20. Bb5 {[%clk 0:00:58]}  bxc3 {[%clk 0:01:44]} 21. Bxd7+ {[%clk 0:00:58]}  Kxd7 {[%clk 0:01:45]} 22. Qb5+ {[%clk 0:00:58]}  Kd8 {[%clk 0:01:32]} 23. Bb6+ {[%clk 0:00:57]}  Kc8 {[%clk 0:01:33]} 24. Rc1 {[%clk 0:00:57]}  Qb7 {[%clk 0:01:20]} 25. Qe8# {[%clk 0:00:56]} 1-0


[Site "https://www.chess.com"]

[Event "Titled Tuesday Blitz April 18 Late 2023"]
[White "Anton Guijarro, David"]
[Black "Jaracz, Pawel"]
[WhiteFideId "2285525"]
[BlackFideId "1102222"]
[WhiteElo "2618"]
[BlackElo "2438"]
[Result "0-1"]
[Round "03"]
[TimeControl "180+2"]
[Date "2023.04.18"]
[WhiteClock "0:00:05"]
[BlackClock "0:00:08"]

1. d4 {[%clk 0:03:00]}  d5 {[%clk 0:02:58]} 2. Nf3 {[%clk 0:03:01]}  Nf6 {[%clk 0:02:58]} 3. e3 {[%clk 0:03:02]}  Bg4 {[%clk 0:02:57]} 4. h3 {[%clk 0:03:02]}  Bxf3 {[%clk 0:02:56]} 5. Qxf3 {[%clk 0:03:02]}  e6 {[%clk 0:02:56]} 6. g4 {[%clk 0:02:54]}  h6 {[%clk 0:02:47]} 7. c4 {[%clk 0:02:48]}  c6 {[%clk 0:02:44]} 8. Nc3 {[%clk 0:02:48]}  Nbd7 {[%clk 0:02:43]} 9. Bd2 {[%clk 0:02:48]}  Bb4 {[%clk 0:02:43]} 10. cxd5 {[%clk 0:02:47]}  exd5 {[%clk 0:02:41]} 11. Bd3 {[%clk 0:02:46]}  Qe7 {[%clk 0:02:40]} 12. Rc1 {[%clk 0:02:42]}  Nb6 {[%clk 0:02:18]} 13. a3 {[%clk 0:02:28]}  Bd6 {[%clk 0:02:12]} 14. h4 {[%clk 0:02:25]}  g6 {[%clk 0:01:30]} 15. Ke2 {[%clk 0:02:22]}  Qe6 {[%clk 0:01:19]} 16. h5 {[%clk 0:01:31]}  g5 {[%clk 0:01:03]} 17. Bf5 {[%clk 0:01:30]}  Qe7 {[%clk 0:01:03]} 18. Rce1 {[%clk 0:01:08]}  Nc4 {[%clk 0:01:01]} 19. Bc1 {[%clk 0:01:08]}  O-O {[%clk 0:00:51]} 20. Kf1 {[%clk 0:01:08]}  Rfe8 {[%clk 0:00:35]} 21. e4 {[%clk 0:01:06]}  dxe4 {[%clk 0:00:34]} 22. Nxe4 {[%clk 0:01:07]}  Nxe4 {[%clk 0:00:34]} 23. Bxe4 {[%clk 0:01:08]}  Kg7 {[%clk 0:00:30]} 24. Kg2 {[%clk 0:00:30]}  Qf6 {[%clk 0:00:26]} 25. d5 {[%clk 0:00:17]}  Qxf3+ {[%clk 0:00:18]} 26. Bxf3 {[%clk 0:00:18]}  c5 {[%clk 0:00:18]} 27. b3 {[%clk 0:00:17]}  Ne5 {[%clk 0:00:17]} 28. Be2 {[%clk 0:00:17]}  a6 {[%clk 0:00:15]} 29. a4 {[%clk 0:00:17]}  Nd7 {[%clk 0:00:15]} 30. Bd3 {[%clk 0:00:16]}  Be5 {[%clk 0:00:14]} 31. Bd2 {[%clk 0:00:14]}  Nf6 {[%clk 0:00:14]} 32. Rxe5 {[%clk 0:00:10]}  Rxe5 {[%clk 0:00:13]} 33. Bc3 {[%clk 0:00:10]}  Rxd5 {[%clk 0:00:13]} 34. Bc4 {[%clk 0:00:06]}  Rd6 {[%clk 0:00:14]} 35. Re1 {[%clk 0:00:06]}  Rad8 {[%clk 0:00:14]} 36. Re3 {[%clk 0:00:06]}  R8d7 {[%clk 0:00:14]} 37. Rf3 {[%clk 0:00:06]}  Rd4 {[%clk 0:00:14]} 38. Bxd4 {[%clk 0:00:06]}  Rxd4 {[%clk 0:00:15]} 39. Rf5 {[%clk 0:00:05]}  Rxg4+ {[%clk 0:00:15]} 40. Kf1 {[%clk 0:00:06]}  b6 {[%clk 0:00:13]} 41. Bxa6 {[%clk 0:00:05]}  Rf4 {[%clk 0:00:10]} 42. Re5 {[%clk 0:00:03]}  Rxf2+ {[%clk 0:00:10]} 43. Kg1 {[%clk 0:00:04]}  Ng4 {[%clk 0:00:11]} 44. Re7 {[%clk 0:00:04]}  Rb2 {[%clk 0:00:11]} 45. Bc4 {[%clk 0:00:04]}  Kf6 {[%clk 0:00:10]} 46. Rxf7+ {[%clk 0:00:05]}  Ke5 {[%clk 0:00:11]} 47. Rb7 {[%clk 0:00:03]}  Kf4 {[%clk 0:00:09]} 48. Rxb6 {[%clk 0:00:03]}  Kg3 {[%clk 0:00:09]} 49. Kf1 {[%clk 0:00:04]}  Ne3+ {[%clk 0:00:09]} 50. Ke1 {[%clk 0:00:04]}  Nxc4 {[%clk 0:00:10]} 51. Rxh6 {[%clk 0:00:04]}  Rxb3 {[%clk 0:00:10]} 52. Rg6 {[%clk 0:00:04]}  g4 {[%clk 0:00:10]} 53. h6 {[%clk 0:00:04]}  Rb1+ {[%clk 0:00:10]} 54. Ke2 {[%clk 0:00:04]}  Rh1 {[%clk 0:00:11]} 55. Rg5 {[%clk 0:00:04]}  Rxh6 {[%clk 0:00:08]} 56. Rxc5 {[%clk 0:00:05]}  Rh2+ {[%clk 0:00:07]} 57. Ke1 {[%clk 0:00:04]}  Nb2 {[%clk 0:00:08]} 58. a5 {[%clk 0:00:04]}  Nd3+ {[%clk 0:00:07]} 59. Kf1 {[%clk 0:00:05]}  Nxc5 {[%clk 0:00:08]} 0-1


[Site "https://www.chess.com"]

[Event "Titled Tuesday Blitz April 18 Late 2023"]
[White "Mihajlov, Sebastian"]
[Black "Pichot, Alan"]
[WhiteFideId "1512110"]
[BlackFideId "110973"]
[WhiteElo "2478"]
[BlackElo "2573"]
[Result "0-1"]
[Round "03"]
[TimeControl "180+2"]
[Date "2023.04.18"]
[WhiteClock "0:00:05"]
[BlackClock "0:00:08"]

1. e4 {[%clk 0:03:00]}  c5 {[%clk 0:02:59]} 2. Nf3 {[%clk 0:03:01]}  e6 {[%clk 0:02:58]} 3. d4 {[%clk 0:03:01]}  cxd4 {[%clk 0:02:58]} 4. Nxd4 {[%clk 0:03:02]}  Nc6 {[%clk 0:02:58]} 5. Nc3 {[%clk 0:03:03]}  Qc7 {[%clk 0:02:58]} 6. Be3 {[%clk 0:03:04]}  a6 {[%clk 0:02:59]} 7. Qf3 {[%clk 0:03:04]}  Ne5 {[%clk 0:02:56]} 8. Qg3 {[%clk 0:03:04]}  h5 {[%clk 0:02:56]} 9. h4 {[%clk 0:03:04]}  Nf6 {[%clk 0:02:56]} 10. O-O-O {[%clk 0:02:36]}  d6 {[%clk 0:02:48]} 11. Be2 {[%clk 0:02:24]}  Bd7 {[%clk 0:02:47]} 12. f4 {[%clk 0:02:07]}  Neg4 {[%clk 0:02:27]} 13. e5 {[%clk 0:01:56]}  dxe5 {[%clk 0:02:24]} 14. fxe5 {[%clk 0:01:54]}  Qxe5 {[%clk 0:02:14]} 15. Bf4 {[%clk 0:01:54]}  Qc5 {[%clk 0:02:15]} 16. Bf3 {[%clk 0:01:36]}  Be7 {[%clk 0:02:00]} 17. Nb3 {[%clk 0:01:21]}  Qf2 {[%clk 0:01:50]} 18. Bxb7 {[%clk 0:01:17]}  Ra7 {[%clk 0:01:49]} 19. Bf3 {[%clk 0:01:09]}  O-O {[%clk 0:01:44]} 20. Rhe1 {[%clk 0:01:01]}  Qxg3 {[%clk 0:01:24]} 21. Bxg3 {[%clk 0:01:01]}  Bb4 {[%clk 0:01:25]} 22. Bd6 {[%clk 0:00:52]}  Bxd6 {[%clk 0:01:23]} 23. Rxd6 {[%clk 0:00:52]}  Rc8 {[%clk 0:01:18]} 24. Ne4 {[%clk 0:00:45]}  Be8 {[%clk 0:01:10]} 25. Nxf6+ {[%clk 0:00:21]}  Nxf6 {[%clk 0:01:11]} 26. Re5 {[%clk 0:00:20]}  Kf8 {[%clk 0:01:09]} 27. c3 {[%clk 0:00:16]}  Rc4 {[%clk 0:01:04]} 28. Rd4 {[%clk 0:00:16]}  Rac7 {[%clk 0:00:54]} 29. Rxc4 {[%clk 0:00:15]}  Rxc4 {[%clk 0:00:55]} 30. g3 {[%clk 0:00:16]}  Ke7 {[%clk 0:00:43]} 31. Kd2 {[%clk 0:00:16]}  Kd6 {[%clk 0:00:41]} 32. Ra5 {[%clk 0:00:17]}  Bb5 {[%clk 0:00:41]} 33. Nd4 {[%clk 0:00:17]}  Rc5 {[%clk 0:00:35]} 34. b4 {[%clk 0:00:15]}  Re5 {[%clk 0:00:35]} 35. a4 {[%clk 0:00:14]}  Bc4 {[%clk 0:00:35]} 36. Rxe5 {[%clk 0:00:15]}  Kxe5 {[%clk 0:00:35]} 37. Nc6+ {[%clk 0:00:15]}  Kd6 {[%clk 0:00:35]} 38. Nd4 {[%clk 0:00:15]}  g6 {[%clk 0:00:33]} 39. Ke3 {[%clk 0:00:15]}  e5 {[%clk 0:00:33]} 40. Ne2 {[%clk 0:00:13]}  Ng4+ {[%clk 0:00:26]} 41. Kd2 {[%clk 0:00:12]}  f5 {[%clk 0:00:26]} 42. Bxg4 {[%clk 0:00:11]}  hxg4 {[%clk 0:00:26]} 43. Nc1 {[%clk 0:00:11]}  Kd5 {[%clk 0:00:26]} 44. Ke3 {[%clk 0:00:11]}  Bf1 {[%clk 0:00:20]} 45. Nd3 {[%clk 0:00:08]}  Bxd3 {[%clk 0:00:06]} 46. Kxd3 {[%clk 0:00:09]}  f4 {[%clk 0:00:06]} 47. gxf4 {[%clk 0:00:08]}  exf4 {[%clk 0:00:07]} 48. c4+ {[%clk 0:00:08]}  Ke5 {[%clk 0:00:07]} 49. a5 {[%clk 0:00:08]}  g3 {[%clk 0:00:06]} 50. Ke2 {[%clk 0:00:08]}  Ke4 {[%clk 0:00:06]} 51. b5 {[%clk 0:00:08]}  f3+ {[%clk 0:00:06]} 52. Kf1 {[%clk 0:00:07]}  Ke3 {[%clk 0:00:07]} 53. b6 {[%clk 0:00:04]}  g2+ {[%clk 0:00:07]} 54. Kg1 {[%clk 0:00:05]}  Ke2 {[%clk 0:00:07]} 55. b7 {[%clk 0:00:05]}  f2+ {[%clk 0:00:08]} 56. Kh2 {[%clk 0:00:05]}  g1=Q+ {[%clk 0:00:08]} 0-1


[Site "https://www.chess.com"]

[Event "Titled Tuesday Blitz April 18 Late 2023"]
[White "Popovic, Dusan"]
[Black "Plotnikov, Pavel"]
[WhiteFideId "927031"]
[BlackFideId "4170342"]
[WhiteElo "2573"]
[BlackElo "2298"]
[Result "1-0"]
[Round "03"]
[TimeControl "180+2"]
[Date "2023.04.18"]
[WhiteClock "0:01:13"]
[BlackClock "0:00:08"]

1. g3 {[%clk 0:03:00]}  d5 {[%clk 0:02:58]} 2. Bg2 {[%clk 0:03:01]}  c6 {[%clk 0:02:58]} 3. d3 {[%clk 0:03:00]}  e5 {[%clk 0:02:58]} 4. Nf3 {[%clk 0:02:59]}  Bd6 {[%clk 0:02:58]} 5. O-O {[%clk 0:02:59]}  Nf6 {[%clk 0:02:57]} 6. Nc3 {[%clk 0:02:58]}  O-O {[%clk 0:02:56]} 7. e4 {[%clk 0:02:58]}  d4 {[%clk 0:02:55]} 8. Nb1 {[%clk 0:02:57]}  c5 {[%clk 0:02:55]} 9. Nh4 {[%clk 0:02:55]}  Nc6 {[%clk 0:02:49]} 10. a4 {[%clk 0:02:43]}  Re8 {[%clk 0:02:39]} 11. Na3 {[%clk 0:02:42]}  Bf8 {[%clk 0:02:38]} 12. Nc4 {[%clk 0:02:42]}  Be6 {[%clk 0:02:27]} 13. b3 {[%clk 0:02:42]}  a6 {[%clk 0:02:25]} 14. Bg5 {[%clk 0:02:34]}  h6 {[%clk 0:02:04]} 15. Bd2 {[%clk 0:02:29]}  b5 {[%clk 0:02:00]} 16. Nb2 {[%clk 0:02:16]}  Qc7 {[%clk 0:01:42]} 17. f4 {[%clk 0:02:00]}  Reb8 {[%clk 0:01:17]} 18. f5 {[%clk 0:01:55]}  Bd7 {[%clk 0:01:16]} 19. g4 {[%clk 0:01:55]}  Nh7 {[%clk 0:01:16]} 20. Nf3 {[%clk 0:01:55]}  Nb4 {[%clk 0:01:03]} 21. h4 {[%clk 0:01:53]}  g6 {[%clk 0:00:59]} 22. Rf2 {[%clk 0:01:52]}  bxa4 {[%clk 0:00:25]} 23. Nxa4 {[%clk 0:01:51]}  Nf6 {[%clk 0:00:18]} 24. Bh3 {[%clk 0:01:45]}  c4 {[%clk 0:00:17]} 25. bxc4 {[%clk 0:01:42]}  gxf5 {[%clk 0:00:09]} 26. gxf5 {[%clk 0:01:34]}  Kh7 {[%clk 0:00:10]} 27. Ng5+ {[%clk 0:01:35]}  hxg5 {[%clk 0:00:09]} 28. hxg5 {[%clk 0:01:35]}  Bh6 {[%clk 0:00:08]} 29. gxf6 {[%clk 0:01:25]}  Rh8 {[%clk 0:00:08]} 30. Qh5 {[%clk 0:01:14]}  Rag8+ {[%clk 0:00:08]} 31. Kh1 {[%clk 0:01:13]} 1-0


[Site "https://www.chess.com"]